Cogmind - Beta 16.1 @@@ ROGUE MODE // 2026.02.19 @ 22:18:31 Player: MrWaffler Result: Destroyed by exploding Compression Vault Performance ------------- Evolutions (2) 1000 Regions Visited (4) 800 Robots Destroyed (14) 70 Value Destroyed (539) 539 Prototype IDs (0) 0 Alien Tech Used (0) 0 Bonus (416) 416 TOTAL SCORE: 2825 Bonus ------- High Alert Combat Kills 22 Follower Combat Kills 394 Cogmind --------- Core Integrity 0/550 Matter 285/300 Energy 271/275 System Corruption 1% Temperature Cool (4) Movement Walking (120) Location -8/Storage Parts ------- > --- POWER (1) -------- Deuterium Engine > --- PROPULSION (2) --- Aluminum Leg Carbon-fiber Leg > --- UTILITY (6) ------ Small Storage Unit Visual Processing Unit Visual Processing Unit Improved Signal Interpreter ECM Suite Improved Propulsion Shielding > --- WEAPON (2) ------- Pulse Rifle > --- INVENTORY (8) ---- Aluminum Leg Aluminum Leg Improved Aluminum Leg Visual Processing Unit ECM Suite ECM Suite Pulse Rifle Pulse Rifle Peak State ------------ > --- POWER ------------ Deuterium Engine > --- PROPULSION ------- Aluminum Leg Carbon-fiber Leg > --- UTILITY ---------- Small Storage Unit Visual Processing Unit Visual Processing Unit Visual Processing Unit Improved Sensor Array Improved Signal Interpreter > --- WEAPON ----------- Pulse Rifle Pulse Rifle > --- INVENTORY -------- Wheel Wheel Visual Processing Unit Improved Propulsion Shielding Improved Propulsion Shielding [Rating: 27] Favorites ----------- Power Deuterium Engine Engine Deuterium Engine Propulsion Aluminum Leg Leg Aluminum Leg Utility Visual Processing Unit Device Terrain Scanner Storage Small Storage Unit Processor Visual Processing Unit Protection Improved Propulsion Shielding Weapon Light Assault Rifle Energy Gun Pulse Rifle Ballistic Gun Light Assault Rifle Special Weapon Mining Laser Build | -11 -10 -10 -8 -8 ------- Run | Yrd Mat Sub Mat Sto Slots Evolved 4 | . . . 4 . Power . | . . . . . Propulsion . | . . . . . Utility 4 | . . . 4 . Weapon . | . . . . . Parts Attached 27 | 6 3 . 2 16 Power 2 | 1 . . . 1 Engine 2 | 1 . . . 1 Core . | . . . . . Reactor . | . . . . . Propulsion 6 | 2 . . 1 3 Treads . | . . . . . Leg 6 | 2 . . 1 3 Wheel . | . . . . . Hover . | . . . . . Flight . | . . . . . Utility 11 | 1 1 . 1 8 Device 4 | . 1 . 1 2 Storage 1 | 1 . . . . Processor 4 | . . . . 4 Hackware . | . . . . . Protection 2 | . . . . 2 Artifact . | . . . . . Weapon 8 | 2 2 . . 4 Energy Gun 3 | . 1 . . 2 Energy Cannon . | . . . . . Ballistic Gun 4 | 2 . . . 2 Ballistic Cannon . | . . . . . Launcher . | . . . . . Special Weapon 1 | . 1 . . . Impact Weapon . | . . . . . Slashing Weapon . | . . . . . Piercing Weapon . | . . . . . Special Melee Weapon . | . . . . . Unidentified Prototypes . | . . . . . Parts Lost 11 | . . . 3 8 Power . | . . . . . Propulsion 3 | . . . . 3 Utility 3 | . . . 1 2 Weapon 5 | . . . 2 3 Highest Loss Streak 3 | . . . 3 2 To Critical Strikes . | . . . . . Average Backups 4 | . 1 2 2 6 Power . | . . . . . Propulsion 1 | . . . . 2 Utility 1 | . . . . 3 Weapon 1 | . 1 2 1 . Tool/Special . | . . . . . Unused Backups 9 | . . . . 9 Power . | . . . . . Propulsion 4 | . . . . 4 Utility 3 | . . . . 3 Weapon 2 | . . . . 2 Tool/Special . | . . . . . Average Slot Usage (%) 91 | . 99 100 64 95 Engine 10 | . 14 14 9 9 Leg 20 | . 28 28 18 16 Device 10 | . 13 14 10 9 Storage 10 | . 14 14 9 9 Processor 16 | . . . . 30 Protection 1 | . . . . 1 Energy Gun 8 | . 7 14 8 8 Ballistic Gun 10 | . 19 14 9 7 Special Weapon 1 | . . . . 1 Peak Build Rating 27 | 6 7 7 12 27 Average Rating 16 | 4 6 7 7 23 On Entrance 5 | . 6 7 7 8 Avg Prop Armor Cover (%) . | . . . . . Naked Turns . | . . . . . Heaviest Build 24 | 12 14 14 15 24 Greatest Support 25 | 20 20 20 22 25 Greatest Overweight (x) 2 | 2 . . . 2 Average Overweight (x) . | . . . . . Largest Inventory Capacity 8 | 8 8 8 8 8 Average Capacity 7 | 6 8 8 8 8 Most Carried 8 | 1 2 2 3 8 Average Carried 4 | . 1 2 2 6 Final Capacity 8 | 8 8 8 8 8 Final Carried 8 | 1 2 2 2 8 Class Distribution -------------------- 59% | Mutant 23% | Skirmisher 15% | Commander-Skirmisher Dominant Class ---------------- Mutant | -10/Materials Mutant | -10/Subcaves Mutant | -8/Materials Skirmisher | -8/Storage Resources | -11 -10 -10 -8 -8 ----------- Run | Yrd Mat Sub Mat Sto Matter Collected 531 | 223 10 . . 298 Remotely . | . . . . . Salvage Created 536 | . 10 . 59 467 Parts 24 | . 1 . 7 16 Haulers Intercepted . | . . . . . Recyclers Shooed . | . . . . . Parts Field Recycled . | . . . . . Retrieved Matter . | . . . . . Parts Self-Destructed . | . . . . . Prevented . | . . . . . Parts Restored . | . . . . . Kills | -11 -10 -10 -8 -8 ------- Run | Yrd Mat Sub Mat Sto Combat Hostiles Destroyed 12 | . 1 . 1 10 Guns 10 | . 1 . 1 8 Classes Destroyed 6 | . 1 . 1 4 Worker 2 | . . . . 2 Swarmer 1 | . 1 . . . Grunt 5 | . . . . 5 Duelist 1 | . . . . 1 Sentry 4 | . . . 1 3 Hunter 1 | . . . . 1 Best Kill Streak 4 | . 1 . 1 4 Combat Bots Only 3 | . 1 . 1 3 Max Kills in Single Turn 1 | . 1 . 1 1 Gunslinging . | . . . . . Exploded . | . . . . . Melee . | . . . . . Uniques/NPCs Destroyed . | . . . . . Combat | -11 -10 -10 -8 -8 -------- Run | Yrd Mat Sub Mat Sto Hostile Shots Fired 142 | . 3 1 35 103 Missed 45 | . . . 18 27 Hits 97 | . 3 1 17 76 Melee 9 | . . . . 9 Projectile 88 | . 3 1 17 67 AOE 1 | . . . 1 . Critical Strikes 7 | . . . . 7 Damage Taken 1956 | . 91 20 369 1476 Core 560 | . . . 118 442 Absorbed by Shields . | . . . . . Redirected to Shielding 135 | . . . . 135 Core Remaining (%) 100 | 100 . 100 . . Volleys Fired 68 | . 13 . 4 51 Largest 2 | . 2 . 2 2 Hottest 140 | . 140 . 60 126 Shots Fired 127 | . 26 . 8 93 Gun 121 | . 22 . 8 91 Cannon . | . . . . . Launcher . | . . . . . Special 6 | . 4 . . 2 Kinetic 50 | . 9 . 4 37 Thermal 60 | . 4 . . 56 Explosive . | . . . . . Electromagnetic 17 | . 13 . 4 . Robot Hit Streak 10 | . 6 . 10 10 Robot Miss Streak 3 | . 2 . 2 3 Penetration Max . | . . . . . Secondary Targets 2 | . . . 1 1 Max Gunslinging Chain 1 | . . . 1 1 Shots Hit Robots 84 | . 12 . 6 66 Core Hits 26 | . 2 . 3 21 Critical Kills . | . . . . . Critical Parts Destroyed . | . . . . . Critical Strikes 2 | . . . . 2 Burn 2 | . . . . 2 Melee Attacks . | . . . . . Impact . | . . . . . Slashing . | . . . . . Piercing . | . . . . . Sneak Attacks . | . . . . . Combat Hostiles . | . . . . . Follow-up Attacks . | . . . . . Damage Inflicted 1183 | . 129 . 60 994 Guns 1136 | . 127 . 60 949 Cannons . | . . . . . Explosions . | . . . . . Melee . | . . . . . Ramming 23 | . 2 . . 21 Kinetic 294 | . 51 . 24 219 Thermal 754 | . . . . 754 Explosive . | . . . . . Electromagnetic 112 | . 76 . 36 . Impact . | . . . . . Slashing . | . . . . . Piercing . | . . . . . Highest Corruption 1 | . 1 1 . . Average Corruption 1 | . 1 1 . . Corruption Purged . | . . . . . Corruption Blocked . | . . . . . Effects 2 | . 1 1 . . Matter Fused 2 | . 1 1 . . Overload Shots . | . . . . . Overflow Damage . | . . . . . Projectiles . | . . . . . Explosions . | . . . . . Melee . | . . . . . Knockbacks . | . . . . . Impact . | . . . . . Kinetic . | . . . . . Secondary . | . . . . . Self-Inflicted Damage . | . . . . . Shots . | . . . . . Rammed . | . . . . . Targets Rammed 8 | . 1 . . 7 Kicked 8 | . 1 . . 7 Crushed . | . . . . . Highest Temperature 416 | . 160 . 47 416 Average Temperature 106 | . 51 . 20 129 Received Heat Transfer 597 | . . . 129 468 Effects 1 | . . . . 1 Shutdowns 1 | . . . . 1 Siege Activations . | . . . . . Martial Activations . | . . . . . Shielding Activations . | . . . . . Robots Disrupted . | . . . . . Combat Hostiles . | . . . . . Robots Corrupted . | . . . . . Combat Hostiles . | . . . . . Parts Fried . | . . . . . Impact Corruptions . | . . . . . Robots Melted 2 | . . . . 2 Combat Hostiles 2 | . . . . 2 Parts Melted 9 | . . . . 9 Heat Transferred 1789 | . . . . 1789 Parts Sabotaged . | . . . . . Parts Stolen . | . . . . . Parts Stripped . | . . . . . Power Chain Reactions . | . . . . . Alert | -11 -10 -10 -8 -8 ------- Run | Yrd Mat Sub Mat Sto Maximum Alert Level 2 | . . . . 2 Low Security (%) 55 | 100 100 . 100 20 Level 1 38 | . . . . 69 Level 2 5 | . . . . 10 Level 3 . | . . . . . Level 4 . | . . . . . Level 5 . | . . . . . High Security . | . . . . . Max Security . | . . . . . Peak Influence 423 | . 20 . 30 423 Initial 8 | . . . . 8 Average 155 | . 1 . . 277 Influence Increases 938 | . 23 . 35 880 Destroy 0b10 Robot/C 520 | . 20 . 20 480 Destroy 0b10 Robot/NC 15 | . . . . 15 Destroy Leader 150 | . . . 10 140 Allied During Kill 203 | . . . . 203 Successful Hack 16 | . . . 5 11 Disable Machine 15 | . . . . 15 Destroy Structure 4 | . 3 . . 1 Lose Combat Pursuer 15 | . . . . 15 Influence Decreases 636 | . 23 . 15 598 Entered New Map 12 | . . . . 12 Time Decay 354 | . 23 . 5 326 Lost Part 90 | . . . 10 80 Lost Ally 180 | . . . . 180 Squads Dispatched 5 | . 2 . 1 2 Investigation 2 | . . . . 2 Extermination . | . . . . . Reinforcement 3 | . 2 . 1 . Assault . | . . . . . Garrison . | . . . . . Intercept . | . . . . . Searches Triggered . | . . . . . Construction Impeded . | . . . . . Haulers Reinforced . | . . . . . Active Scanning Responses . | . . . . . Cargo Convoy Interrupts . | . . . . . Stealth | -11 -10 -10 -8 -8 --------- Run | Yrd Mat Sub Mat Sto Distress Signals 2 | . 1 . 1 . Communications Jammed . | . . . . . Distress Signals . | . . . . . Times Spotted 33 | . 2 1 9 21 Peak Tracking Total 10 | . 3 1 10 5 Tactical Retreats 1 | . . . . 1 Traps | -11 -10 -10 -8 -8 ------- Run | Yrd Mat Sub Mat Sto Traps Triggered 3 | . 1 . . 2 Indirectly . | . . . . . Trap Hack Attempts . | . . . . . Triggered . | . . . . . Disarmed . | . . . . . Reprogrammed . | . . . . . Reused . | . . . . . Traps Extracted . | . . . . . Installed . | . . . . . Triggered . | . . . . . Machines | -11 -10 -10 -8 -8 ---------- Run | Yrd Mat Sub Mat Sto Machines Disabled 1 | . . . . 1 Max in Single Turn 1 | . . . . 1 Machines Repaired . | . . . . . Machines Dismantled . | . . . . . Machines Sabotaged . | . . . . . Overloaded Fab Kills . | . . . . . Hacking | -11 -10 -10 -8 -8 --------- Run | Yrd Mat Sub Mat Sto Machines Accessed 7 | . 1 . 1 5 Terminals 7 | . 1 . 1 5 Fabricators . | . . . . . Repair Stations . | . . . . . Recycling Units . | . . . . . Scanalyzers . | . . . . . Garrison Access . | . . . . . Total Hacks 15 | . 2 . 1 12 Successful 6 | . . . 1 5 Failed 9 | . 2 . . 7 Catastrophic 1 | . . . . 1 Database Lockouts . | . . . . . Manual . | . . . . . Terminals 15 | . 2 . 1 12 Fabricators . | . . . . . Repair Stations . | . . . . . Recycling Units . | . . . . . Scanalyzers . | . . . . . Garrison Access . | . . . . . Terminal Hacks 6 | . . . 1 5 Robot Analysis 1 | . . . . 1 Open Door 2 | . . . . 2 Locate Traps 1 | . . . . 1 Hauler Manifests 1 | . . . . 1 Zone Layout 1 | . . . 1 . Fabricator Hacks . | . . . . . Repair Station Hacks . | . . . . . Recycling Unit Hacks . | . . . . . Scanalyzer . | . . . . . Garrison Access Hacks . | . . . . . Unauthorized Hacks . | . . . . . Terminals . | . . . . . Fabricators . | . . . . . Repair Stations . | . . . . . Recycling Units . | . . . . . Scanalyzers . | . . . . . Garrison Access . | . . . . . Data Cores Recovered . | . . . . . Used . | . . . . . Hacking Detections 4 | . 1 . . 3 Full Trace Events 2 | . . . . 2 Feedback Events . | . . . . . Feedback Blocked . | . . . . . Robot Schematics Acquired . | . . . . . Robots Built . | . . . . . Authchips . | . . . . . Time . | . . . . . Total Robot Build Rating . | . . . . . Part Schematics Acquired . | . . . . . Parts Built . | . . . . . Authchips . | . . . . . Time . | . . . . . Total Part Build Rating . | . . . . . Part Studies Acquired . | . . . . . Parts Repaired . | . . . . . Time . | . . . . . Parts Recycled . | . . . . . Recycled Matter . | . . . . . Retrieved Matter . | . . . . . Retrieved Components . | . . . . . Parts Scanalyzed . | . . . . . Part Schematics Acquired . | . . . . . Parts Damaged . | . . . . . Bothacking | -11 -10 -10 -8 -8 ------------ Run | Yrd Mat Sub Mat Sto Used RIF Installer . | . . . . . Robots Hacked . | . . . . . Non-combat . | . . . . . Combat . | . . . . . Robot Hacks Applied . | . . . . . Relay Couplers Released . | . . . . . Fabnet Peak Effective % . | . . . . . Robots Rewired 1 | . . . . 1 Allies Hacked . | . . . . . Hacks Repelled . | . . . . . Allies | -11 -10 -10 -8 -8 -------- Run | Yrd Mat Sub Mat Sto Total Allies 10 | . . . . 10 Largest Group 10 | . . . . 10 Highest-Rated Group 173 | . . . . 173 Highest-Rated Ally 29 | . . . . 29 Total Orders . | . . . . . Ally Attacks 109 | . . . . 109 Total Damage 1253 | . . . . 1253 Kills 16 | . . . . 16 Allies Corrupted . | . . . . . Allies Melted . | . . . . . Intel | -11 -10 -10 -8 -8 ------- Run | Yrd Mat Sub Mat Sto Active Infowar (turns) 1296 | . 306 41 212 737 Optics 678 | . . . . 678 Sensors 533 | . . . . 533 Terrain 734 | . 306 41 212 175 ECM 90 | . . . . 90 Robot Analysis Total 1 | . . . . 1 Derelict Logs Recovered . | . . . . . Drone Launches . | . . . . . Drone Recoveries . | . . . . . Exploration | -11 -10 -10 -8 -8 ------------- Run | Yrd Mat Sub Mat Sto Turns Passed 1356 | 48 318 41 212 737 Spaces Moved 774 | 34 169 35 84 452 Core 9 | 9 . . . . Treads . | . . . . . Legs 765 | 25 169 35 84 452 Wheels . | . . . . . Hover . | . . . . . Flight . | . . . . . Fastest Speed 50 | 50 120 120 105 105 Average Speed 119 | 114 120 120 117 119 Slowest Speed 260 | 150 120 120 120 260 Overloaded Moves . | . . . . . Propulsion Burnouts . | . . . . . Robots Hopped . | . . . . . Potential Cave-ins . | . . . . . Cave-ins Triggered . | . . . . . Exploration Rate (%) 22 | 4 21 5 10 71 Regions Visited 4 Branch Regions 2 Pre-discovered Areas . | . . . . . Known Exits Taken . | . . . . . Unknown Exits Taken 4 | 1 1 1 1 . Scrap Searched . | . . . . . Spaces Dug 4 | . 4 . . . Terrain Destroyed 4 | . 4 . . . Melee . | . . . . . Projectile 4 | . 4 . . . AOE . | . . . . . Terrain Rammed . | . . . . . Walls Destroyed . | . . . . . Machines Disabled . | . . . . . Actions | -11 -10 -10 -8 -8 --------- Run | Yrd Mat Sub Mat Sto Total 1066 | 40 250 34 189 553 Wait 162 | . 63 . 99 . Move 770 | 33 168 34 83 452 Hop . | . . . . . Pick Up 19 | 1 1 . . 17 Fast Attach 15 | 6 1 . 1 7 Attach 10 | . . . 1 9 Detach . | . . . . . Swap 8 | . 3 . 1 4 Drop 5 | . . . . 5 Fire 68 | . 13 . 4 51 Melee . | . . . . . Ram . | . . . . . Kick 8 | . 1 . . 7 Crush . | . . . . . Escape Stasis . | . . . . . Rewire 1 | . . . . 1 Trap . | . . . . . Miscellaneous . | . . . . . Route ------- -11/Scrapyard -10/Materials -10/Subcaves -8/Materials -8/Storage (discovered 1 exit: [*Fac]) History --------- Turn | Location | Event 10 | -11/Scrapyard | Discovered new exit (range 16) 49 | -11/Scrapyard | Entered Materials 50 | -10/Materials | Met a group of wandering Federalists 127 | -10/Materials | Discovered new exit (range 10) 317 | -10/Materials | Build established: Mutant 367 | -10/Materials | Entered Subcaves 368 | -10/Subcaves | Continued accompanying wandering Federalists (6) 376 | -10/Subcaves | Discovered new exit (range 9) 408 | -10/Subcaves | Entered Materials 408 | -8/Materials | Evolved 4 slots: Utility x4 608 | -8/Materials | Discovered new exit (range 6) 620 | -8/Materials | Entered Storage 630 | -8/Storage | Assisted by bots powering up and referring to "LRC-V3" 646 | -8/Storage | Lost 3 parts (1u2w) 829 | -8/Storage | Lost 6 allies 906 | -8/Storage | Core integrity fell below 50% 1156 | -8/Storage | Build established: Skirmisher 1203 | -8/Storage | Core integrity fell below 20% 1353 | -8/Storage | Discovered new exit (range 13) 1357 | -8/Storage | Destroyed by exploding Compression Vault Last Messages --------------- 01266_ Dropped Imp. Propulsion Shielding. 01271_ Discarded Visual Processing Unit. 01274_ Acquired Pulse Rifle. 01280_ Triggered Explosive Trap. 01280_ An explosion rips through the floor. 01282_ R-06 Scavenger collects Lgt. Assault Rifle. 01285_ U-05 Engineer lays Concrete. 01301_ U-05 Engineer builds a Wall. 01301_ U-05 Engineer lays Concrete. 01302_ U-05 Engineer builds a Wall. 01346_ K-01 Serf cleans the Terminal. 01353_ EXIT=FOUND 01354_ K-01 Serf cleans the Terminal. 01356_ Critical hit (Burn: +37). 01356_ Pulse Rifle destroyed. 01357_ Triggered Proton Bomb Trap. 01357_ A bubble of electromagnetic force engulfs the area. 01357_ Compression Vault explodes. Map ----- +----------------------------------------------------+ | | | | | | | | | | | | | | | | | | | | | ???????????????????????????????????? | | ???????????????????????????????????? | | ????????????###????????????????????? | | ????????????T"#????????????????????? | | ???????????# "###########??????????? | | ??????????? ??????????? | | ??????????? < ?????????? | | ??????????# ?????????? | | ??????????# ??????????? | | ?????###### ????????????? | | ?????# ??????????????? | | ?????# #???????????????? | | ?????# ^ #??????????????## | | ?????+ +??????????????# | | ????## k###???????????????# | | ????#" @ ""#???????????????# | | ????#T u T"#???????????????#% | | ????#" ""#???????????????# | | ????## [ ###???????????????#% | | ?????# #?????????????????#* | | ?????#Y### #?????????????????#% | | ???? ??## w#?????????????????## | | ??# ????# #??????????????????? | | ?## ?????# #??????????????????? | | ?# ""???# #??????##??????????? | | ?## """ ## #################### | | ??# """ + % % ^ % %[% | | ?????######+## = ########### | | ??????# # = =[ #??????? | | ??????# ! + #??????? | | ??????# [#### ####### % #??????? | | ??????# #??# ######## ##??????? | | ??????# ! #??# #??????# #???????? | | ??????# #??#+######?# #???##### | | ??????##+#####??# #?# #???# # | | ???????# ######## #?# #???# # | | ???????# # # ### ##??# # | | ???????# # # ## #### # | | ???????# # # ## # | | ????#### # # ## #### # | +----------------------------------------------------+ Best States ------------- Heat Dissipation 31 Energy Generation 14 Energy Capacity 275 Matter Stores 300 Matter Capacity 300 Sight Range 18 Robot Scan Range 15 Terrain Scan Range 14 Terrain Scan Density 10 ECM Strength 1 Propulsion Shielding 66 Evasion (%) 55 Recoil Reduction 4 Item Schematics ----------------- None Robot Schematics ------------------ None Fabricated ------------ Nothing Repaired ---------- Nothing Studied --------- None Alien Tech Used ----------------- None Achievements -------------- Strength In Numbers Challenges ------------ None Game ------ Seed ServoCombatRailgun Manual? 0 Play Time 00:21:36 Cumulative 17.7 hours Start 2026.02.19 @ 21:56:55 End 2026.02.19 @ 22:18:31 Sessions 1 Manual Loads 0 Difficulty Rogue Special Mode None Game No. 12 Rogue 9 Adventurer 0 Explorer 3 Win Type - Total 0 Types 0/0/0/0/0/0/0/0/0/0 Lore% 8 Gallery% 17 Achievement% 19 Wizard Run 0 Options --------- Layout 1 ASCII 0 Keyboard 0 Movement Arrows Keybinds 0 Fullscreen 2 Font 32/SmallcapsGlow Map View 50x35 Zoom Use 0% Tactical HUD 1 Map Filters NONE Filters NONE Steam 1 RUN: 3a830a33-f517-499f-a798-89b46e07578e